[Event "Romanian-ch Youth Open U12 2024"]
[Site "Eforie Nord"]
[Date "2024.04.19"]
[Round "9.2"]
[White "Voinescu, Marian-David"]
[Black "Stanica, Andrei"]
[Result "0-1"]
[ECO "C88"]
[WhiteElo "1756"]
[BlackElo "1977"]
[Annotator "TA"]
[PlyCount "106"]
[EventDate "2024.04.10"]
[EventType "swiss"]
[EventCountry "ROU"]
[SourceTitle "playchess.com"]
[Source "ChessBase"]
[SourceQuality "1"]
[TimeControl "5400+30"]

{[%evp 17,106,4,16,9,12,-133,-142,-163,179,188,179,173,163,174,185,177,190,164,150,103,120,-512,-519,-494,-526,-684,-667,-634,-444,-445,-456,-437,-440,-443,-439,-565,-528,-887,-887,-887,-887,-880,-879,-871,-828,-828,-828,-4133,-3765,-8094,-3777,-29954,-29955,-29970,-29964,-29980,-29982,-29985,-29983,-29986,-29987,-29987,-29988,-29988,-29987,-29987,-29988,-29985,-29986,-29986,-29987,-29987,-29987,-29987,-29988,-29989,-29989,-29990,-29991,-29991,-29992,-29993,-29992,-29992,-29993,-29994,-29994,-29994,-29995,-29995,-29996]} 1. e4 {[%emt 0:10:14]} e5 {[%emt 0:00:03]} 2. Nf3 {[%emt 0:00:02]} Nc6 {[%emt 0:00:09]} 3. Bb5 {[%emt 0:00:07]} a6 {[%emt 0:00:05]} 4. Ba4 {[%emt 0:00:02]} Nf6 {[%emt 0:00:07]} 5. O-O {[%emt 0:00:06]} Be7 {[%emt 0:00:08]} 6. Re1 {[%emt 0:00:03]} b5 {[%emt 0:00:08]} 7. Bb3 {[%emt 0:00:02]} O-O {[%emt 0:00:10]} 8. a4 {[%emt 0:00:02]} Bb7 {[%emt 0:00:08]} 9. c3 {[%emt 0:00:06]} d5 {[%emt 0:00:45]} 10. exd5 {[%emt 0:00:53]} Nxd5 {[%emt 0:00:02]} 11. Nxe5 {[%emt 0:03:40]} (11. axb5 $11 {remains equal.} axb5 12. Rxa8 Bxa8 13. d4) 11... Nxe5 $17 {[%emt 0:00:02]} 12. Rxe5 {[%emt 0:00:03] Black is clearly better.} Bd6 $4 {[%emt 0:00:33][%mdl 8192]} (12... Nf4 $19 {and all is fine. aiming for ...Bd6.} 13. d4 Nxg2) 13. Rxd5 $18 {[%emt 0:05:02]} ({Don't take} 13. Bxd5 $6 c6 $14) 13... Bxd5 {[%emt 0:00:32]} 14. Bxd5 {[%emt 0:00:53]} Bxh2+ {[%emt 0:00:05]} 15. Kxh2 {[%emt 0:00:02]} Qxd5 {[%emt 0:00:01]} 16. d4 {[%emt 0:00:51]} c5 {[%emt 0:03:12]} 17. Be3 {[%emt 0:02:04]} f5 {[%emt 0:02:40]} 18. Bf4 {[%emt 0:03:09]} (18. g3 $142) 18... Rad8 $16 {[%emt 0:00:58]} 19. Be5 $2 {[%emt 0:00:58][%mdl 8192] White does not recover from this.} (19. axb5 $16 axb5 20. Nd2) 19... Qxe5+ $19 {[%emt 0:00:10]} 20. Kg1 {[%emt 0:01:04]} cxd4 {[%emt 0:00:28]} 21. cxd4 {[%emt 0:05:24]} Rxd4 {[%emt 0:00:14][%cal Rd4d1] [#]} 22. Qb3+ {[%emt 0:00:03]} Qd5 {[%emt 0:00:44]} 23. Qxd5+ {[%emt 0:00:10]} Rxd5 {[%emt 0:00:02][%mdl 4096] Endgame. KRR-KRN} 24. Nc3 {[%emt 0:00:02] Prevents Rd1+.} Rc5 {[%emt 0:01:15]} 25. axb5 {[%emt 0:00:41]} axb5 {[%emt 1:30:19]} 26. Ra5 {[%emt 0:00:52]} Rfc8 {[%emt 0:00:00] Threatens to win with ...b4.} 27. Rxb5 {[%emt 0:01:41]} Rxb5 {[%emt 0:01:00]} 28. Nxb5 {[%emt 0:00:01] KR-KN} Rb8 {[%emt 0:00:00]} 29. Nd4 {[%emt 0:00:03]} g6 {[%emt 0:00:00]} 30. b3 {[%emt 0:00:09]} Rb4 {[%emt 0:00:00]} 31. Ne2 {[%emt 0:00:59]} Rxb3 {[%emt 0:00:00] And now ...Rb1+ would win.} 32. f3 {[%emt 0:00:10]} Kf7 {[%emt 0:00:00]} 33. Kf2 {[%emt 0:00:04]} Kf6 {[%emt 0:00:00]} (33... Rb2 $142 34. Kf1 Kf6) 34. Kg3 {[%emt 0:02:38]} h5 {[%emt 0:00:00] Black mates.} 35. Nf4 {[%emt 0:00:36] [#]} h4+ $1 {[%emt 0:00:00]} 36. Kh2 {[%emt 0:01:23]} (36. Kf2 g5) 36... g5 {[%emt 0:00:00]} 37. Ne2 {[%emt 0:00:21]} g4 {[%emt 0:00:00]} 38. fxg4 {[%emt 0:01:11]} fxg4 {[%emt 0:00:00]} 39. Nf4 {[%emt 0:03:31]} Kf5 {[%emt 0:00:00]} 40. Nd5 {[%emt 0:00:12]} Rb1 {[%emt 0:00:00]} 41. Ne3+ {[%emt 0:00:09]} Kf4 {[%emt 0:00:00]} 42. Nd5+ {[%emt 0:00:24]} Kg5 {[%emt 0:07:30]} 43. g3 {[%emt 0:00:22]} Rb2+ {[%emt 0:00:00]} 44. Kg1 {[%emt 0:00:03]} h3 {[%emt 0:00:00]} 45. Ne3 {[%emt 0:00:04]} Re2 {[%emt 0:00:00]} 46. Nf1 {[%emt 0:00:12]} Rg2+ {[%emt 0:00:00]} 47. Kh1 {[%emt 0:00:01]} Kh5 {[%emt 0:00:00]} 48. Ne3 {[%emt 0:00:15]} Rxg3 {[%emt 0:00:00]} 49. Nf5 {[%emt 0:00:05]} Ra3 {[%emt 0:00:00]} 50. Kh2 {[%emt 0:00:27]} Kg5 {[%emt 0:00:00]} 51. Ng3 {[%emt 0:00:09]} Ra2+ {[%emt 0:00:00]} 52. Kh1 {[%emt 0:00:04]} Kf4 {[%emt 0:00:00]} 53. Nh5+ {[%emt 0:00:14]} Kf3 {[%emt 0:00:00] Weighted Error Value: White=1.20/Black=0.48.  Loses game:     	White=1     	---        Missed win:     	---       	Black=1      Mistake:       	White=2     	---        Inaccurate:     	White=2     	---        OK:         	White=7     	Black=5      Best:        	---       	Black=3} 0-1